bitfinex-derivatives/quotes_ETHF0:USTF0_20260118
["timestamp","ask_amount","ask_price","bid_price","bid_amount"]
[1768757242399,0.9279267,3338.1,3337.1,0.14989]
[1768757242599,0.95825482,3338.3,3337.1,0.14989]
[1768757242800,0.9279291,3338.2,3337.1,0.14989]
[1768757243000,0.9279291,3338.1,3337.1,0.14989]
[1768757243301,0.95825482,3338.3,3337.1,0.14989]
[1768757243500,0.927931,3338.2,3337.1,0.14989]
[1768757243704,0.927931,3338.1,3337.1,0.14989]
[1768757243906,0.95825482,3338.3,3337.1,0.14989]
[1768757244098,0.927931,3338.2,3337.1,0.14989]
[1768757244300,0.927931,3338.1,3337.1,0.14989]
[1768757244598,0.95825482,3338.3,3337.1,0.14989]
[1768757244800,0.92793293,3338.2,3337.1,0.14989]
[1768757244999,0.92793293,3338.1,3337.1,0.14989]
[1768757245200,0.95825482,3338.3,3337.1,0.14989]
[1768757245499,0.92793188,3338.2,3337.1,0.14989]
[1768757245699,0.92793188,3338.1,3337.1,0.14989]
[1768757245908,0.95825482,3338.3,3337.2,0.14989]
[1768757246101,0.92793401,3338.2,3337.2,0.14989]
[1768757246304,0.92793401,3338.1,3337.2,0.14989]
[1768757246510,0.95825482,3338.3,3337.2,0.14989]
[1768757246708,0.92793588,3338.2,3337.2,0.14989]
[1768757247010,0.92793588,3338.1,3337.2,0.14989]
[1768757247202,0.95825482,3338.3,3337.2,0.14989]
[1768757247404,0.92793611,3338.2,3337.2,0.14989]
[1768757247603,0.92793611,3338.1,3337.2,0.14989]
[1768757247901,0.95825482,3338.3,3337.2,0.14989]
[1768757248101,0.92793547,3338.2,3337.2,0.14989]
[1768757248301,0.92793547,3338.1,3337.2,0.14989]
[1768757248603,0.95825482,3338.3,3337.2,0.14989]
[1768757248805,0.9279351,3338.2,3337.2,0.14989]
[1768757249004,0.9279351,3338.1,3337.2,0.14989]
[1768757249205,0.95825482,3338.3,3337.2,0.14989]
[1768757249505,0.92793515,3338.2,3337.2,0.14989]
[1768757249704,0.92793515,3338.1,3337.2,0.14989]
[1768757249905,0.95825482,3338.3,3337.2,0.14989]
[1768757250118,0.92793478,3338.2,3337.2,0.14989]
[1768757250409,0.92793478,3338.1,3337.2,0.14989]
[1768757250615,0.95825482,3338.3,3337.2,0.14989]
[1768757250807,0.92793541,3338.2,3337.2,0.14989]
[1768757251008,0.92793541,3338.1,3337.2,0.14989]
[1768757251207,0.95825482,3338.3,3337.2,0.14989]
[1768757251408,0.92793448,3338.2,3337.2,0.14989]
[1768757251605,0.92793448,3338.1,3337.2,0.14989]
[1768757251810,0.95825482,3338.3,3337.2,0.14989]
[1768757252005,0.92793506,3338.2,3337.2,0.14989]
[1768757252207,0.92793506,3338.1,3337.2,0.14989]
[1768757252408,0.95825482,3338.3,3337.2,0.14989]
[1768757252603,0.9279419,3338.2,3337.2,0.14989]
[1768757252910,0.9279419,3338.1,3337.2,0.14989]
[1768757253208,0.95825482,3338.3,3337.2,0.14989]
[1768757253404,0.92794892,3338.2,3337.2,0.14989]
[1768757253718,0.92794892,3338.1,3337.2,0.14989]
[1768757254015,0.95825482,3338.3,3337.2,0.14989]
[1768757254216,0.92793493,3338.2,3337.2,0.14989]
[1768757254409,0.92793493,3338.1,3337.2,0.14989]
[1768757254610,0.95825482,3338.3,3337.2,0.14989]
[1768757254811,0.92793293,3338.2,3337.2,0.14989]
[1768757255014,0.92793293,3338.1,3337.2,0.14989]
[1768757255214,0.95825482,3338.3,3337.2,0.14989]
[1768757255422,0.92794311,3338.2,3337.2,0.14989]
[1768757255625,0.92794311,3338.1,3337.2,0.14989]
[1768757255825,1.17905467,3338.5,3337.2,0.14989]
[1768757256022,0.92792112,3338.4,3337.2,0.14989]
[1768757256225,0.92792112,3338.3,3337.2,0.14989]
[1768757256425,1.17905467,3338.5,3337.2,0.14989]
[1768757256426,0.92792112,3338.2,3337.2,0.14989]
[1768757256729,0.92792112,3338.1,3337.4,0.14988]
[1768757256928,0.96133509,3338.8,3337.4,0.14988]
[1768757257230,0.92791926,3338.7,3337.4,0.14988]
[1768757257429,0.92791926,3338.6,3337.4,0.14988]
[1768757257632,0.92791926,3338.5,3337.4,0.14988]
[1768757257821,0.92791926,3338.4,3337.4,0.14988]
[1768757258022,0.92791926,3338.3,3337.4,0.14988]
[1768757258324,1.19039328,3338.8,3337.4,0.14988]
[1768757258624,0.92759641,3338.7,3337.4,0.14988]
[1768757258824,0.92759641,3338.6,3337.4,0.14988]
[1768757259023,0.92759641,3338.5,3337.4,0.14988]
[1768757259227,0.92759641,3338.4,3337.4,0.14988]
[1768757259527,0.92759641,3338.3,3337.4,0.14988]
[1768757259728,1.19039328,3338.8,3337.4,0.14988]
[1768757259928,0.92751566,3338.7,3337.4,0.14988]
[1768757260129,0.92751566,3338.6,3337.4,0.14988]
[1768757260330,0.92751566,3338.5,3337.4,0.14988]
[1768757260531,0.92751566,3338.4,3337.4,0.14988]
[1768757260831,0.92751566,3338.3,3337.4,0.14988]
[1768757261036,1.19039328,3338.8,3337.4,0.14988]
[1768757261236,0.92745431,3338.7,3337.4,0.14988]
[1768757261535,0.92745431,3338.6,3337.4,0.14988]
[1768757261832,0.92745431,3338.5,3337.4,0.14988]
[1768757262031,0.92745431,3338.4,3337.4,0.14988]
[1768757262233,0.92745431,3338.3,3337.4,0.14988]
[1768757262434,1.19039328,3338.8,3337.4,0.14988]
[1768757262639,0.92736329,3338.7,3337.4,0.14988]
[1768757262935,0.92736329,3338.6,3337.4,0.14988]
[1768757263130,0.92736329,3338.5,3337.4,0.14988]
[1768757263329,0.92736329,3338.4,3337.4,0.14988]
[1768757263631,1.19039328,3338.8,3337.4,0.14988]
[1768757263830,0.92730507,3338.7,3337.4,0.14988]
[1768757264032,0.92730507,3338.6,3337.4,0.14988]
[1768757264328,0.92730507,3338.5,3337.4,0.14988]
[1768757264528,0.92730507,3338.4,3337.4,0.14988]
[1768757264829,1.19039328,3338.8,3337.4,0.14988]
[1768757265030,0.92726913,3338.7,3337.4,0.14988]
[1768757265336,0.92726913,3338.6,3337.4,0.14988]
[1768757265631,0.92726913,3338.5,3337.4,0.14988]
[1768757265832,0.92726913,3338.4,3337.4,0.14988]
[1768757266130,1.19039328,3338.8,3337.4,0.14988]
[1768757266331,0.92723945,3338.7,3337.4,0.14988]
[1768757266533,0.92723945,3338.6,3337.4,0.14988]
[1768757266732,0.92723945,3338.5,3337.4,0.14988]
[1768757266933,0.92723945,3338.4,3337.4,0.14988]
[1768757267136,0.92723945,3338.3,3337.4,0.14988]
[1768757267324,1.19039328,3338.8,3337.4,0.14988]
[1768757267528,0.92719535,3338.7,3337.4,0.14988]
[1768757267834,0.92719535,3338.6,3337.4,0.14988]
[1768757268029,0.92719535,3338.5,3337.4,0.14988]
[1768757268230,0.92719535,3338.4,3337.4,0.14988]
[1768757268530,0.92719535,3338.3,3337.4,0.14988]
[1768757268729,1.19039328,3338.8,3337.4,0.14988]
[1768757268928,0.9269127,3338.7,3337.4,0.14988]
[1768757269134,0.9269127,3338.6,3337.4,0.14988]
[1768757269337,0.9269127,3338.5,3337.4,0.14988]
[1768757269532,0.9269127,3338.4,3337.4,0.14988]
[1768757269732,0.9269127,3338.3,3337.4,0.14988]
[1768757269934,1.19039328,3338.8,3337.4,0.14988]
[1768757270135,0.92690242,3338.7,3337.4,0.14988]
[1768757270338,0.92690242,3338.6,3337.4,0.14988]
[1768757270537,0.92690242,3338.5,3337.4,0.14988]
[1768757270837,0.92690242,3338.4,3337.4,0.14988]
[1768757271038,0.92690242,3338.3,3337.4,0.14988]
[1768757271339,1.19039328,3338.8,3337.4,0.14988]
[1768757271531,0.95825482,3338.6,3337.4,0.14988]
[1768757271731,0.92689433,3338.5,3337.4,0.14988]
[1768757271934,0.92689433,3338.4,3337.4,0.14988]
[1768757272234,0.92689433,3338.3,3337.4,0.14988]
[1768757272435,0.95825482,3338.6,3337.4,0.14988]
[1768757272636,0.92689626,3338.5,3337.4,0.14988]
[1768757272837,0.92689626,3338.4,3337.4,0.14988]
[1768757273032,0.92689626,3338.3,3337.4,0.14988]
[1768757273231,0.95825482,3338.6,3337.4,0.14988]
[1768757273433,0.92690049,3338.5,3337.4,0.14988]
[1768757273634,0.92690049,3338.4,3337.4,0.14988]
[1768757273841,0.92690049,3338.3,3337.4,0.14988]
[1768757274037,0.95825482,3338.6,3337.4,0.14988]
[1768757274238,0.9269023,3338.5,3337.4,0.14988]
[1768757274439,0.9269023,3338.4,3337.4,0.14988]
[1768757274637,0.9269023,3338.3,3337.4,0.14988]
[1768757274839,0.95825482,3338.6,3337.4,0.14988]
[1768757275038,0.92691258,3338.5,3337.4,0.14988]
[1768757275240,0.92691258,3338.4,3337.4,0.14988]
[1768757275443,0.92691258,3338.3,3337.4,0.14988]
[1768757275733,0.95825482,3338.6,3337.4,0.14988]
[1768757275929,0.92692676,3338.5,3337.4,0.14988]
[1768757276129,0.92692676,3338.4,3337.4,0.14988]
[1768757276341,0.92692676,3338.3,3337.4,0.14988]
[1768757276543,0.95825482,3338.6,3337.4,0.14988]
[1768757276842,0.92694405,3338.5,3337.4,0.14988]
[1768757277042,0.92694405,3338.4,3337.4,0.14988]
[1768757277244,0.92694405,3338.3,3337.4,0.14988]
[1768757277442,1.19039328,3338.8,3337.4,0.14988]
[1768757277637,0.92696643,3338.7,3337.4,0.14988]
[1768757277837,0.92696643,3338.6,3337.4,0.14988]
[1768757278039,0.92696643,3338.5,3337.4,0.14988]
[1768757278239,0.92696643,3338.4,3337.4,0.14988]
[1768757278437,0.92696643,3338.3,3337.4,0.14988]
[1768757278742,1.19039328,3338.8,3337.4,0.14988]
[1768757278944,0.92699345,3338.7,3337.4,0.14988]
[1768757279242,0.92699345,3338.6,3337.4,0.14988]
[1768757279443,0.92699345,3338.5,3337.4,0.14988]
[1768757279643,0.92699345,3338.4,3337.5,0.95825482]
[1768757279844,0.92699345,3338.3,3337.5,0.95825482]
[1768757280045,1.19039328,3338.8,3337.5,0.95825482]
[1768757280245,0.92702587,3338.7,3337.5,0.95825482]
[1768757280448,0.92702587,3338.6,3337.5,1.10812482]
[1768757280750,0.92702587,3338.5,3337.5,1.10812482]
[1768757281044,0.92702587,3338.4,3337.5,1.10812482]
[1768757281250,0.00308027,3338.8,3337.7,0.95825482]
[1768757281441,0.92698362,3338.7,3337.7,0.95825482]
[1768757281643,0.92698362,3338.6,3337.7,1.10812482]
[1768757281843,0.00308027,3338.8,3338.1,0.95825482]
[1768757282440,0.00308027,3338.8,3337.9,0.95825482]
[1768757283353,0.00308027,3338.8,3337.8,0.14986]
[1768757285441,0.00308027,3338.8,3337.9,0.95825482]
[1768757285646,0.00308027,3338.8,3337.8,0.37016151]
[1768757285847,0.00308027,3338.8,3337.8,0.14986]
[1768757288754,0.00308027,3338.8,3337.8,1.10811482]
[1768757290850,0.00308027,3338.8,3337.8,0.14986]
[1768757293562,0.00308027,3338.8,3337.9,0.37016151]
[1768757293750,0.00308027,3338.8,3338.0,0.22030151]
[1768757306775,0.00308027,3338.8,3338.1,0.23091732]
[1768757308267,4.45534877,3339.6,3338.1,0.23091732]
[1768757308467,0.92642003,3339.5,3338.1,0.23091732]
[1768757308669,0.92642003,3339.4,3338.1,0.23091732]
[1768757308867,0.92642003,3339.3,3338.1,0.23091732]
[1768757309067,0.92642003,3339.2,3338.1,0.23091732]
[1768757309376,0.92642003,3339.1,3338.1,0.23091732]
[1768757309576,0.92642003,3339.0,3338.1,0.23091732]
[1768757309875,0.00374289,3339.2,3338.1,0.23091732]
[1768757310077,0.92666313,3339.1,3338.1,0.23091732]
[1768757310266,0.92666313,3339.0,3338.1,0.23091732]
[1768757310466,0.00374289,3339.2,3338.1,0.23091732]
[1768757310667,0.92664321,3339.1,3338.1,0.23091732]
[1768757310868,0.92664321,3339.0,3338.1,0.23091732]
[1768757311075,0.00374289,3339.2,3338.1,0.23091732]
[1768757311377,0.92685893,3339.1,3338.1,0.23091732]
[1768757311583,0.92685893,3339.0,3338.1,0.23091732]
[1768757311874,0.00374289,3339.2,3338.1,0.23091732]
[1768757312075,0.92683641,3339.1,3338.1,0.23091732]
[1768757312376,0.92683641,3339.0,3338.1,0.23091732]
[1768757312577,0.00374289,3339.2,3338.1,0.23091732]
[1768757312773,0.92682104,3339.1,3338.1,0.23091732]
[1768757312975,0.92682104,3339.0,3338.1,0.23091732]
[1768757313274,0.00374289,3339.2,3338.1,0.23091732]
[1768757313474,0.9268104,3339.1,3338.1,0.23091732]
[1768757313677,0.9268104,3339.0,3338.1,0.23091732]
[1768757313978,0.00374289,3339.2,3338.1,0.23091732]
[1768757314177,0.9268107,3339.1,3338.1,0.23091732]
[1768757314475,0.9268107,3339.0,3338.1,0.23091732]
[1768757314678,0.00374289,3339.2,3338.1,0.23091732]
[1768757314874,0.92680916,3339.1,3338.1,0.23091732]
[1768757315073,0.92680916,3339.0,3338.1,0.23091732]
[1768757315277,0.00374289,3339.2,3338.1,0.23091732]
[1768757315479,0.92681366,3339.1,3338.1,0.23091732]
[1768757315670,0.92681366,3339.0,3338.1,0.23091732]
[1768757315866,0.00374289,3339.2,3338.1,0.23091732]
[1768757316070,0.92681407,3339.1,3338.1,0.23091732]
[1768757316271,0.92681407,3339.0,3338.1,0.23091732]
[1768757316580,0.00374289,3339.2,3338.1,0.23091732]
[1768757316780,0.92682581,3339.1,3338.1,0.23091732]
[1768757317076,0.92682581,3339.0,3338.1,0.23091732]
[1768757317281,0.00374289,3339.2,3338.1,0.23091732]
[1768757317479,0.92684087,3339.1,3338.1,0.23091732]
[1768757317681,0.92684087,3339.0,3338.1,0.23091732]
[1768757317982,0.00374289,3339.2,3338.1,0.23091732]
[1768757318171,0.92684086,3339.1,3338.1,0.23091732]
[1768757318483,0.92684086,3339.0,3338.1,0.23091732]
[1768757318684,0.00374289,3339.2,3338.1,0.23091732]
[1768757318981,0.92686108,3339.1,3338.1,0.23091732]
[1768757319189,0.92686108,3339.0,3338.1,0.23091732]
[1768757319374,0.00374289,3339.2,3338.1,0.23091732]
[1768757319576,0.92689509,3339.1,3338.1,0.23091732]
[1768757319777,0.92689509,3339.0,3338.1,0.23091732]
[1768757320079,0.00374289,3339.2,3338.1,0.23091732]
[1768757320280,0.92689621,3339.1,3338.1,0.23091732]
[1768757320473,0.92689621,3339.0,3338.1,0.23091732]
[1768757320680,0.00374289,3339.2,3338.1,0.23091732]
[1768757320877,0.92693701,3339.1,3338.1,0.23091732]
[1768757321080,0.92693701,3339.0,3338.1,0.23091732]
[1768757321380,0.00374289,3339.2,3338.1,0.23091732]
[1768757321581,0.92698679,3339.1,3338.1,0.23091732]
[1768757321783,0.92698679,3339.0,3338.1,0.23091732]
[1768757322079,0.00374289,3339.2,3338.1,0.23091732]
[1768757322281,0.92698518,3339.1,3338.1,0.23091732]
[1768757322472,0.92698518,3339.0,3338.1,0.23091732]
[1768757322672,0.00374289,3339.2,3338.1,0.23091732]
[1768757322871,0.92704489,3339.1,3338.1,0.23091732]
[1768757323074,0.92704489,3339.0,3338.1,0.23091732]
[1768757323273,0.00374289,3339.2,3338.1,0.23091732]
[1768757323473,0.92712131,3339.1,3338.1,0.23091732]
[1768757323676,0.92712131,3339.0,3338.1,0.23091732]
[1768757323985,0.00374289,3339.2,3338.0,0.14985]
[1768757324184,0.92712292,3339.1,3338.0,0.14985]
[1768757324483,0.92712292,3339.0,3338.0,0.14985]
[1768757324676,0.00374289,3339.2,3338.0,0.14985]
[1768757324870,0.92719504,3339.1,3338.0,0.14985]
[1768757325072,0.92719504,3339.0,3338.0,0.14985]
[1768757325272,0.00374289,3339.2,3338.0,0.14985]
[1768757325472,0.92722042,3339.1,3338.0,0.14985]
[1768757325673,0.92722042,3339.0,3338.0,0.14985]
[1768757325876,0.00374289,3339.2,3338.0,0.14985]
[1768757326082,0.92722048,3339.1,3338.0,0.14985]
[1768757326385,0.92722048,3339.0,3338.0,0.14985]
[1768757326581,0.00374289,3339.2,3338.0,0.14985]
[1768757326775,0.92723272,3339.1,3338.0,0.14985]
[1768757326983,0.92723272,3339.0,3338.0,0.14985]
[1768757327181,0.00374289,3339.2,3338.0,0.14985]
[1768757327385,0.92724784,3339.1,3338.0,0.14985]
[1768757327678,0.92724784,3339.0,3338.0,0.14985]
[1768757327880,0.00374289,3339.2,3338.0,0.14985]
[1768757328178,0.92724896,3339.1,3338.0,0.14985]
[1768757328482,0.92724896,3339.0,3338.0,0.14985]
[1768757328675,0.00374289,3339.2,3338.0,0.14985]
[1768757328875,0.92774231,3339.1,3338.0,0.14985]
[1768757329075,0.92774231,3339.0,3338.0,0.14985]
[1768757329373,0.00374289,3339.2,3338.0,0.14985]
[1768757329577,0.92776103,3339.1,3338.0,0.14985]
[1768757329770,0.92776103,3339.0,3338.0,0.14985]
[1768757330080,0.00374289,3339.2,3338.0,0.14985]
[1768757330377,0.92776077,3339.1,3338.0,0.14985]
[1768757330580,0.92776077,3339.0,3338.0,0.14985]
[1768757330878,0.00374289,3339.2,3338.0,0.14985]
[1768757331080,0.92778262,3339.1,3338.0,0.14985]
[1768757331277,0.92778262,3339.0,3338.0,0.14985]
[1768757331477,0.92778262,3338.9,3338.0,0.14985]
[1768757331787,0.00374289,3339.2,3338.0,0.14985]
[1768757343697,0.92592213,3339.1,3338.0,0.14985]
[1768757343897,0.92592213,3339.0,3338.0,0.14985]
[1768757344100,0.92592213,3338.9,3338.0,0.14985]
[1768757344297,0.00374289,3339.2,3338.0,0.14985]
[1768757344505,0.92592673,3339.1,3338.0,0.14985]
[1768757344706,0.92592673,3339.0,3338.0,0.14985]
[1768757344907,0.92592673,3338.9,3338.0,0.14985]
[1768757345100,0.00374289,3339.2,3338.0,0.37837142]
[1768757345300,0.92592733,3339.1,3338.2,0.22852142]
[1768757345599,0.92592733,3339.0,3338.3,0.22852142]
[1768757345797,0.00374289,3339.2,3338.3,0.22852142]
[1768757346106,0.92591106,3339.1,3338.3,0.22852142]
[1768757346301,0.00374289,3339.2,3338.3,0.22852142]
[1768757346500,0.92578525,3339.1,3338.3,0.22852142]
[1768757346706,0.00374289,3339.2,3338.3,0.22852142]
[1768757347002,0.92578525,3339.1,3338.3,0.22852142]
[1768757347202,0.00374289,3339.2,3338.3,0.22852142]
[1768757347402,0.92572235,3339.1,3338.3,0.22852142]
[1768757347607,0.00374289,3339.2,3338.3,0.22852142]
[1768757347807,0.92572235,3339.1,3338.3,0.22852142]
[1768757348006,0.00374289,3339.2,3338.3,0.22852142]
[1768757348207,0.92572235,3339.1,3338.3,0.22852142]
[1768757348506,0.00374289,3339.2,3338.3,0.22852142]
[1768757348809,0.9256769,3339.1,3338.3,0.22852142]
[1768757349003,0.00374289,3339.2,3338.3,0.22852142]
[1768757349207,0.9256771,3339.1,3338.3,0.22852142]
[1768757349410,0.00374289,3339.2,3338.3,0.22852142]
[1768757349612,0.92564145,3339.1,3338.3,0.22852142]
[1768757349811,0.00374289,3339.2,3338.3,0.22852142]
[1768757350011,0.92564126,3339.1,3338.3,0.22852142]
[1768757350313,0.00374289,3339.2,3338.3,0.22852142]
[1768757350503,0.92561267,3339.1,3338.3,0.22852142]
[1768757350704,0.00374289,3339.2,3338.3,0.22852142]
[1768757351011,0.92561279,3339.1,3338.4,0.95754701]
[1768757351211,0.00374289,3339.2,3338.4,0.95754701]
[1768757351415,0.92558792,3339.1,3338.4,0.95754701]
[1768757351713,0.00374289,3339.2,3338.4,0.95754701]
[1768757351914,0.92558792,3339.1,3338.4,0.95754701]
[1768757352103,0.00374289,3339.2,3338.3,0.22852142]
[1768757352410,0.92557275,3339.1,3338.4,0.95754701]
[1768757352616,0.00374289,3339.2,3338.4,0.95754701]
[1768757352803,0.92556645,3339.1,3338.4,0.95754701]
[1768757353004,0.00374289,3339.2,3338.4,0.95754701]
[1768757353205,0.92556665,3339.1,3338.4,0.95754701]
[1768757353404,0.00374289,3339.2,3338.4,0.95754701]
[1768757353612,0.92554784,3339.1,3338.4,0.95754701]
[1768757353815,0.00374289,3339.2,3338.4,0.95754701]
[1768757354113,0.92554785,3339.1,3338.4,0.95754701]
[1768757354414,0.00374289,3339.2,3338.4,0.95754701]
[1768757354718,0.92553409,3339.1,3338.4,0.95754701]
[1768757354919,0.00374289,3339.2,3338.3,0.22852142]
[1768757355211,0.92553488,3339.1,3338.3,1.18606843]
[1768757355412,0.00374289,3339.2,3338.3,1.18606843]
[1768757355604,0.92552306,3339.1,3338.3,1.18606843]
[1768757355804,0.00374289,3339.2,3338.3,1.18606843]
[1768757356012,0.92552306,3339.1,3338.3,1.18606843]
[1768757356313,0.00374289,3339.2,3338.3,1.18606843]
[1768757356513,0.92551466,3339.1,3338.3,1.18606843]
[1768757356717,0.00374289,3339.2,3338.3,1.18606843]
[1768757356914,0.92551466,3339.1,3338.3,1.18606843]
[1768757357115,0.00374289,3339.2,3338.3,1.18606843]
[1768757357412,0.92551054,3339.1,3338.3,1.18606843]
[1768757357607,0.00374289,3339.2,3338.3,1.18606843]
[1768757357806,0.92550865,3339.1,3338.3,1.18606843]
[1768757358006,0.00374289,3339.2,3338.3,0.22852142]
[1768757358214,0.92594907,3339.1,3338.3,0.22852142]
[1768757358415,0.00374289,3339.2,3338.3,0.22852142]
[1768757358610,0.9259472,3339.1,3338.3,0.22852142]
[1768757358814,0.00374289,3339.2,3338.3,0.22852142]
[1768757359114,0.92594717,3339.1,3338.2,0.14984]
[1768757359415,0.00374289,3339.2,3338.2,0.14984]
[1768757359609,0.92594855,3339.1,3338.2,0.14984]
[1768757359812,0.00374289,3339.2,3338.2,0.14984]
[1768757360013,1.88349553,3339.1,3338.2,0.14984]
[1768757360208,0.95754701,3339.1,3338.2,0.14984]
[1768757360717,0.92599646,3339.0,3338.2,0.14984]
[1768757360919,0.95754701,3339.1,3338.2,0.14984]
[1768757361114,0.92599306,3339.0,3338.2,0.14984]
[1768757361315,0.95754701,3339.1,3338.2,0.14984]
[1768757361518,0.92600234,3339.0,3338.2,0.14984]
[1768757361710,0.95754701,3339.1,3338.2,0.14984]
[1768757361911,0.92600239,3339.0,3338.2,0.14984]
[1768757362110,0.95754701,3339.1,3338.2,0.14984]
[1768757362315,0.92600951,3339.0,3338.2,0.14984]
[1768757362516,0.95754701,3339.1,3338.2,0.14984]
[1768757362816,0.92601241,3339.0,3338.2,0.14984]
[1768757363117,0.00374289,3339.2,3338.2,0.14984]
[1768757363323,0.92601922,3339.1,3338.2,0.14984]
[1768757363621,0.92601922,3339.0,3338.2,0.14984]
[1768757363822,0.00374289,3339.2,3338.2,0.14984]
[1768757364021,0.92602282,3339.1,3338.2,0.14984]
[1768757364223,0.92602282,3339.0,3338.2,0.14984]
[1768757364423,0.00374289,3339.2,3338.2,0.14984]
[1768757364721,0.92603332,3339.1,3338.2,0.14984]
[1768757364923,0.92603332,3339.0,3338.2,0.14984]
[1768757365119,0.00374289,3339.2,3338.2,0.14984]
[1768757365320,0.92603969,3339.1,3338.2,0.14984]
[1768757365520,0.92603969,3339.0,3338.2,0.14984]
[1768757365724,0.00374289,3339.2,3338.2,0.14984]
[1768757365925,0.92604435,3339.1,3338.2,0.14984]
[1768757366120,0.92604435,3339.0,3338.2,0.14984]
[1768757366318,0.00374289,3339.2,3338.2,0.14984]
[1768757366523,0.92605523,3339.1,3338.2,0.14984]
[1768757366723,0.92605523,3339.0,3338.2,0.14984]
[1768757366928,0.00374289,3339.2,3338.2,0.14984]
[1768757367120,0.92605527,3339.1,3338.2,0.14984]
[1768757367419,0.92605527,3339.0,3338.2,0.14984]
[1768757367619,0.00374289,3339.2,3338.2,0.14984]
[1768757367820,0.92606686,3339.1,3338.2,0.14984]
[1768757368023,0.92606686,3339.0,3338.2,0.14984]
[1768757368222,0.00374289,3339.2,3338.2,0.14984]
[1768757368423,0.92607905,3339.1,3338.2,0.14984]
[1768757368619,0.92607905,3339.0,3338.2,0.14984]
[1768757368919,0.00374289,3339.2,3338.2,0.14984]
[1768757369120,0.926079,3339.1,3338.2,0.14984]
[1768757369323,0.926079,3339.0,3338.2,0.14984]
[1768757369527,0.00374289,3339.2,3338.2,0.14984]
[1768757369724,0.92609283,3339.1,3338.2,0.14984]
[1768757369925,0.92609283,3339.0,3338.2,0.14984]
[1768757370230,0.00374289,3339.2,3338.2,0.14984]
[1768757370432,0.92609703,3339.1,3338.2,0.14984]
[1768757370631,0.92609703,3339.0,3338.2,0.14984]
[1768757370827,0.00374289,3339.2,3338.2,0.14984]
[1768757371027,0.92609698,3339.1,3338.2,0.14984]
[1768757371228,0.92609698,3339.0,3338.2,0.14984]
[1768757371430,0.00374289,3339.2,3338.2,0.14984]
[1768757371633,0.92611133,3339.1,3338.2,0.14984]
[1768757371833,0.92611133,3339.0,3338.2,0.14984]
[1768757372136,0.00374289,3339.2,3338.2,0.14984]
[1768757372326,0.92612637,3339.1,3338.2,0.14984]
[1768757372622,0.92612637,3339.0,3338.2,0.14984]
[1768757372826,0.00374289,3339.2,3338.2,0.14984]
[1768757373028,0.92612614,3339.1,3338.2,0.14984]
[1768757373228,0.92612614,3339.0,3338.2,0.14984]
[1768757373436,0.00374289,3339.2,3338.2,0.14984]
[1768757373637,0.92614279,3339.1,3338.2,0.14984]
[1768757373837,0.92614279,3339.0,3338.2,0.14984]
[1768757374029,0.00374289,3339.2,3338.2,0.14984]
[1768757374226,0.9261433,3339.1,3338.2,0.14984]
[1768757374529,0.9261433,3339.0,3338.2,0.14984]
[1768757374830,0.00374289,3339.2,3338.2,0.14984]
[1768757375028,0.92616147,3339.1,3338.2,0.14984]
[1768757375340,0.92616147,3339.0,3338.2,0.14984]
[1768757375534,0.00374289,3339.2,3338.2,0.14984]
[1768757375734,0.92618235,3339.1,3338.2,0.14984]
[1768757375932,0.92618235,3339.0,3338.2,0.14984]
[1768757376132,0.00374289,3339.2,3338.2,0.14984]
[1768757376332,0.92618434,3339.1,3338.2,0.14984]
[1768757376532,0.92618434,3339.0,3338.2,0.14984]
[1768757376739,0.00374289,3339.2,3338.2,0.14984]
[1768757376931,0.92618437,3339.1,3338.2,0.14984]
[1768757377126,0.92618437,3339.0,3338.2,0.14984]
[1768757377331,0.00374289,3339.2,3338.2,0.14984]
[1768757377530,0.92618775,3339.1,3338.2,0.14984]
[1768757377726,0.92618775,3339.0,3338.2,0.14984]
[1768757377931,0.00374289,3339.2,3338.2,0.14984]
[1768757378132,0.92617887,3339.1,3338.2,0.14984]
[1768757378332,0.92617887,3339.0,3338.2,0.14984]
[1768757378532,0.00374289,3339.2,3338.2,0.14984]
[1768757378733,0.92618666,3339.1,3338.2,0.14984]
[1768757378936,0.92618666,3339.0,3338.2,0.14984]
[1768757379134,0.00374289,3339.2,3338.2,0.14984]
[1768757379336,0.92619288,3339.1,3338.2,0.14984]
[1768757379635,0.92619288,3339.0,3338.2,0.14984]
[1768757379836,0.00374289,3339.2,3338.2,0.14984]
[1768757380037,0.92618927,3339.1,3338.2,0.14984]
[1768757380334,0.92618927,3339.0,3338.2,0.14984]
[1768757380531,0.00374289,3339.2,3338.2,0.14984]
[1768757380730,0.92619932,3339.1,3338.2,0.14984]
[1768757380936,0.92619932,3339.0,3338.2,0.14984]
[1768757381134,0.00374289,3339.2,3338.2,0.14984]
[1768757381333,0.92620844,3339.1,3338.2,0.14984]
[1768757381537,0.92620844,3339.0,3338.2,0.14984]
[1768757381733,0.00374289,3339.2,3338.2,0.14984]
[1768757381937,0.92620849,3339.1,3338.2,0.14984]
[1768757382145,0.92620849,3339.0,3338.2,0.14984]
[1768757382345,0.00374289,3339.2,3338.2,0.14984]
[1768757382547,0.9262179,3339.1,3338.2,0.14984]
[1768757382747,0.9262179,3339.0,3338.2,0.14984]
[1768757382949,0.9262179,3338.9,3338.2,0.14984]
[1768757383140,0.00374289,3339.2,3338.2,0.14984]
[1768757383340,0.9261707,3339.1,3338.2,0.14984]
[1768757383539,0.9261707,3339.0,3338.2,0.14984]
[1768757383742,0.9261707,3338.9,3338.2,0.14984]
[1768757383936,0.95754701,3339.1,3338.2,0.14984]
[1768757384143,0.95754701,3338.7,3337.5,0.14987]
[1768757384554,0.92597287,3338.6,3337.5,0.14987]
[1768757384847,0.95754701,3338.4,3337.5,0.14987]
[1768757385048,0.95754701,3338.1,3337.0,0.23384609]
[1768757385246,0.47039135,3338.1,3337.0,0.23384609]
[1768757386249,0.95754701,3338.7,3337.3,0.95754701]
[1768757386554,0.92482188,3338.6,3337.3,0.95754701]
[1768757386746,0.92482188,3338.5,3337.3,0.95754701]
[1768757387156,0.92482188,3338.5,3337.1,0.23384609]
[1768757387356,0.92482188,3338.5,3337.1,1.1913931]
[1768757388256,0.95754701,3338.4,3337.1,0.23384609]
[1768757388458,0.92482188,3338.3,3337.1,0.23384609]
[1768757389255,0.95754701,3338.4,3337.1,0.23384609]
[1768757396770,0.95754701,3338.6,3337.2,0.95754701]
[1768757396971,0.92436607,3338.5,3337.2,1.18653687]
[1768757397166,0.95754701,3338.6,3337.2,1.18653687]
[1768757397366,0.9243223,3338.5,3337.2,1.18653687]
[1768757397569,0.95754701,3338.6,3337.2,1.18653687]
[1768757397868,0.9243223,3338.5,3337.2,1.18653687]
[1768757398070,0.95754701,3338.6,3337.2,1.18653687]